Cogmind - Beta 14 @@@ ROGUE MODE // 2024.09.14 @ 21:15:15 Player: celerysam Result: Destroyed by C-35 Carver with Carbide Saw Performance ------------- Evolutions (6) 3000 Regions Visited (7) 1400 Robots Destroyed (31) 155 Value Destroyed (789) 789 Prototype IDs (7) 140 Alien Tech Used (0) 0 Bonus (27) 27 TOTAL SCORE: 5511 Bonus ------- High Alert Combat Kills 27 Cogmind --------- Core Integrity 0/1150 Matter 230/300 Energy 100/100 System Corruption 0% Temperature Cool (0) Movement Hovering (80) Location -4/Factory Parts ------- > --- POWER (2) -------- (None) > --- PROPULSION (6) --- Combat Gravmag System Improved Flight Unit > --- UTILITY (7) ------ Advanced Signal Interpreter System Shield Advanced System Shield > --- WEAPON (4) ------- (None) > --- INVENTORY (5) ---- High-powered Shock Rifle Tesla Rifle Precision Beam Rifle Peak State ------------ > --- POWER ------------ Micro Fission Core Micro Fission Core > --- PROPULSION ------- Improved Flight Unit Improved Flight Unit Improved Flight Unit Improved Flight Unit Xenon Bombardment Thruster Impulse Thruster > --- UTILITY ---------- Power Amplifier Improved Cooling System Advanced Sensor Array Advanced Signal Interpreter Transmission Jammer ECM Suite Hardened Light Armor Plating > --- WEAPON ----------- Mini Assault Cannon Advanced Datajack Katana Heavy Pick > --- INVENTORY -------- Micro Fission Core High-powered Shock Rifle Tesla Rifle Precision Beam Rifle Improved Remote Datajack [Rating: 83] Favorites ----------- Power Light Deuterium Engine Engine Light Deuterium Engine Power Core Micro Fission Core Propulsion Improved Flight Unit Treads Light Treads Leg Aluminum Leg Wheel Compact Wheel Hover Unit Combat Gravmag System Flight Unit Improved Flight Unit Utility ECM Suite Device ECM Suite Storage Small Storage Unit Processor Advanced Signal Interpreter Hackware Advanced System Shield Protection Improved Propulsion Shielding Weapon Improved Light Cannon Energy Gun Advanced Beam Rifle Ballistic Gun Assault Rifle Ballistic Cannon Improved Light Cannon Launcher Scatter Rocket Array Slashing Weapon Katana Piercing Weapon Heavy Pick Special Melee Weapon Advanced Datajack Build | -11 -10 -9 -8 -7 -6 -5 -4 ------- Run | Yrd Mat Mat Mat Fac Fac Fac Fac Slots Evolved 12 | . . 2 2 2 2 2 2 Power 1 | . . . . 1 . . . Propulsion 4 | . . 1 1 1 . 1 . Utility 5 | . . 1 1 . 1 1 1 Weapon 2 | . . . . . 1 . 1 Parts Attached 82 | 4 6 20 9 14 5 8 16 Power 13 | 1 . 2 1 4 2 2 1 Engine 8 | 1 . 2 1 3 1 . . Core 5 | . . . . 1 1 2 1 Reactor . | . . . . . . . . Propulsion 23 | 2 1 9 4 1 . 1 5 Treads 8 | . . 8 . . . . . Leg 3 | 2 1 . . . . . . Wheel 1 | . . . . . . . 1 Hover 1 | . . . . . . . 1 Flight 10 | . . 1 4 1 . 1 3 Utility 21 | 1 1 2 4 1 3 4 5 Device 13 | . . 1 3 1 3 2 3 Storage 1 | 1 . . . . . . . Processor 1 | . . . . . . 1 . Hackware 2 | . . . . . . . 2 Protection 4 | . 1 1 1 . . 1 . Artifact . | . . . . . . . . Weapon 25 | . 4 7 . 8 . 1 5 Energy Gun 6 | . 2 2 . 2 . . . Energy Cannon . | . . . . . . . . Ballistic Gun 3 | . 2 . . . . . 1 Ballistic Cannon 9 | . . 5 . 3 . . 1 Launcher 1 | . . . . . . 1 . Special Weapon . | . . . . . . . . Impact Weapon . | . . . . . . . . Slashing Weapon 3 | . . . . 3 . . . Piercing Weapon 1 | . . . . . . . 1 Special Melee Weapon 2 | . . . . . . . 2 Unidentified Prototypes 7 | . . 2 . 4 . 1 . Parts Lost 28 | . . 4 1 1 . 3 19 Power 3 | . . . . . . 1 2 Propulsion 10 | . . 2 . . . . 8 Utility 11 | . . 1 1 . . 2 7 Weapon 4 | . . 1 . 1 . . 2 Highest Loss Streak 13 | . . 3 1 1 . 2 13 To Critical Strikes . | . . . . . . . . Average Slot Usage (%) 89 | . 97 86 95 99 86 88 71 Engine 9 | . 14 11 9 15 8 3 . Core 2 | . . . . . 4 6 6 Treads 5 | . . 24 10 . . . . Leg 5 | . 28 3 . . . . . Flight 18 | . . . 22 38 33 34 21 Device 14 | . . 6 23 23 20 15 17 Storage 4 | . 14 11 3 . . . . Processor 1 | . . . . . . 2 5 Protection 7 | . 11 6 8 7 6 10 2 Energy Gun 4 | . 14 2 9 3 . . . Ballistic Gun 2 | . 14 1 . . . . . Ballistic Cannon 6 | . . 17 9 5 6 5 2 Slashing Weapon 2 | . . . . 5 6 5 4 Peak Build Rating 83 | 4 9 15 30 43 48 62 83 Average Rating 30 | 2 7 11 24 38 42 53 57 On Entrance 24 | . 4 9 15 30 40 43 56 Naked Turns . | . . . . . . . . Heaviest Build 32 | 8 17 24 24 25 25 31 32 Greatest Support 60 | 20 20 60 60 25 25 31 33 Greatest Overweight (x) 2 | 2 . . . . . . 1 Average Overweight (x) . | . . . . . . . . Largest Inventory Capacity 8 | 8 8 8 8 5 5 5 5 Average Capacity 6 | 7 8 8 6 5 5 5 5 Most Carried 8 | 8 8 8 8 5 5 5 5 Average Carried 5 | 5 6 7 6 4 5 4 4 Final Capacity 8 | 8 8 8 5 5 5 5 5 Final Carried 8 | 8 8 8 5 5 5 5 3 Class Distribution -------------------- 42% | Sprinter 24% | Mutant 17% | Scavenger-Mutant 6% | Infiltrator-Sprinter 6% | Hacker-Mutant Dominant Class ---------------- Mutant | -10/Materials Scavenger-Mutant | -9/Materials Sprinter | -8/Materials Sprinter | -7/Factory Sprinter | -6/Factory Sprinter | -5/Factory Hacker-Mutant | -4/Factory Resources | -11 -10 -9 -8 -7 -6 -5 -4 ----------- Run | Yrd Mat Mat Mat Fac Fac Fac Fac Matter Collected 1169 | 220 14 470 13 51 . 340 61 Remotely . | . . . . . . . . Salvage Created 952 | . 171 415 17 75 24 202 48 Parts 72 | . 17 35 2 3 1 10 4 Haulers Intercepted 2 | . 1 1 . . . . . Recyclers Shooed . | . . . . . . . . Parts Field Recycled . | . . . . . . . . Retrieved Matter . | . . . . . . . . Parts Self-Destructed . | . . . . . . . . Prevented . | . . . . . . . . Kills | -11 -10 -9 -8 -7 -6 -5 -4 ------- Run | Yrd Mat Mat Mat Fac Fac Fac Fac Combat Hostiles Destroyed 22 | . 6 14 . 1 . . 1 Melee 1 | . . . . 1 . . . Guns 13 | . 6 7 . . . . . Cannons 8 | . . 7 . . . . 1 Classes Destroyed 10 | . 3 2 1 1 . 2 1 Worker 2 | . . . . . . 2 . Hauler 2 | . 1 1 . . . . . Recycler 1 | . . . . . . 1 . Operator 1 | . . . . 1 . . . Watcher 3 | . . . 1 1 1 . . Swarmer 8 | . 4 4 . . . . . Grunt 8 | . 2 5 . 1 . . . Duelist 1 | . . 1 . . . . . Sentry 4 | . . 4 . . . . . Programmer 1 | . . . . . . . 1 Best Kill Streak 6 | . 4 6 1 1 1 1 1 Combat Bots Only 6 | . 4 6 . 1 . . 1 Max Kills in Single Turn 2 | . 2 1 1 1 1 1 1 Gunslinging 1 | . 1 . . . . . . Exploded . | . . . . . . . . Melee 1 | . . . . 1 . . . Uniques/NPCs Destroyed . | . . . . . . . . Combat | -11 -10 -9 -8 -7 -6 -5 -4 -------- Run | Yrd Mat Mat Mat Fac Fac Fac Fac Hostile Shots Fired 413 | . 31 101 67 28 11 36 139 Missed 181 | . 7 24 44 19 9 23 55 Damage Taken 4164 | . 189 1023 400 126 31 324 2071 Core 1529 | . 46 191 121 14 . . 1157 Absorbed by Shields . | . . . . . . . . Redirected to Shielding 111 | . . . 9 41 . 46 15 Core Remaining (%) 87 | 100 81 52 78 98 100 100 . Volleys Fired 71 | . 23 35 2 3 . . 8 Largest 2 | . 2 2 2 2 . . 1 Hottest 104 | . 88 104 100 100 . . 48 Shots Fired 130 | . 46 68 4 4 . . 8 Gun 79 | . 46 28 2 3 . . . Cannon 51 | . . 40 2 1 . . 8 Launcher . | . . . . . . . . Special . | . . . . . . . . Kinetic 85 | . 23 51 2 1 . . 8 Thermal 45 | . 23 17 2 3 . . . Explosive . | . . . . . . . . Electromagnetic . | . . . . . . . . Robot Hit Streak 16 | . 6 16 . 2 . . 4 Robot Miss Streak 4 | . 4 3 2 2 . . 3 Penetration Max . | . . . . . . . . Secondary Targets 2 | . 1 1 . . . . . Max Gunslinging Chain 1 | . 1 1 . . . . . Shots Hit Robots 97 | . 25 49 . 6 3 5 9 Core Hits 43 | . 10 20 1 3 1 3 5 Critical Kills . | . . . . . . . . Critical Parts Destroyed . | . . . . . . . . Critical Strikes 4 | . . 3 . . . . 1 Burn 2 | . . 2 . . . . . Blast 2 | . . 1 . . . . 1 Melee Attacks 45 | . . . . 15 7 9 14 Impact . | . . . . . . . . Slashing 41 | . . . . 15 7 9 10 Piercing 4 | . . . . . . . 4 Sneak Attacks 3 | . . . . . . 3 . Combat Hostiles . | . . . . . . . . Follow-up Attacks . | . . . . . . . . Damage Inflicted 2309 | . 373 900 137 212 115 288 284 Guns 740 | . 373 347 . 20 . . . Cannons 751 | . . 553 . 18 . . 180 Explosions 137 | . . . 137 . . . . Melee 673 | . . . . 174 115 288 96 Ramming 8 | . . . . . . . 8 Kinetic 1145 | . 242 705 . 18 . . 180 Thermal 346 | . 131 195 . 20 . . . Explosive 137 | . . . 137 . . . . Electromagnetic . | . . . . . . . . Impact . | . . . . . . . . Slashing 614 | . . . . 174 115 288 37 Piercing 59 | . . . . . . . 59 Highest Corruption 5 | . . . 5 2 . . . Average Corruption 2 | . . . 2 2 . . . Corruption Purged . | . . . . . . . . Corruption Blocked . | . . . . . . . . Effects 4 | . . . 3 1 . . . Matter Fused 1 | . . . . 1 . . . Data Loss (minor) 3 | . . . 3 . . . . Overload Shots . | . . . . . . . . Overflow Damage 110 | . . . . 21 12 77 . Projectiles . | . . . . . . . . Explosions . | . . . . . . . . Melee 110 | . . . . 21 12 77 . Knockbacks 3 | . . 2 . 1 . . . Impact . | . . . . . . . . Kinetic 3 | . . 2 . 1 . . . Secondary . | . . . . . . . . Self-Inflicted Damage 3 | . . . . . . . 3 Shots . | . . . . . . . . Rammed 2 | . . . . . . . 2 Targets Rammed 2 | . . . . . . . 2 Kicked . | . . . . . . . . Crushed . | . . . . . . . . Highest Temperature 367 | . 102 367 14 15 . . . Average Temperature 103 | . 34 161 10 7 . . . Received Heat Transfer 708 | . 12 438 36 42 9 9 162 Effects 1 | . . 1 . . . . . Damage (minor) 1 | . . 1 . . . . . Siege Activations . | . . . . . . . . Robots Corrupted . | . . . . . . . . Combat Hostiles . | . . . . . . . . Parts Fried . | . . . . . . . . Impact Corruptions . | . . . . . . . . Robots Melted . | . . . . . . . . Combat Hostiles . | . . . . . . . . Parts Melted 3 | . 1 2 . . . . . Heat Transferred 965 | . 299 629 . 37 . . . Parts Sabotaged . | . . . . . . . . Parts Stolen . | . . . . . . . . Parts Stripped . | . . . . . . . . Power Chain Reactions . | . . . . . . . . Alert | -11 -10 -9 -8 -7 -6 -5 -4 ------- Run | Yrd Mat Mat Mat Fac Fac Fac Fac Peak Influence 470 | . 176 470 356 287 180 171 177 Initial 198 | . . 74 198 161 140 88 83 Average 170 | . 64 332 243 149 160 125 123 Maximum Alert Level 2 | . . 2 1 1 . . . Low Security (%) 73 | 100 100 9 57 77 100 100 100 Level 1 22 | . . 70 42 22 . . . Level 2 3 | . . 19 . . . . . Level 3 . | . . . . . . . . Level 4 . | . . . . . . . . Level 5 . | . . . . . . . . High Security . | . . . . . . . . Max Security . | . . . . . . . . Squads Dispatched 11 | . 1 1 2 2 . . 5 Investigation . | . . . . . . . . Extermination 1 | . . . . 1 . . . Reinforcement 10 | . 1 1 2 1 . . 5 Assault . | . . . . . . . . Garrison . | . . . . . . . . Intercept . | . . . . . . . . Searches Triggered . | . . . . . . . . Construction Impeded . | . . . . . . . . Haulers Reinforced . | . . . . . . . . Active Scanning Responses . | . . . . . . . . Cargo Convoy Interrupts . | . . . . . . . . Stealth | -11 -10 -9 -8 -7 -6 -5 -4 --------- Run | Yrd Mat Mat Mat Fac Fac Fac Fac Distress Signals 9 | . 1 1 1 2 . 1 3 Communications Jammed 1 | . . . . . . . 1 Distress Signals . | . . . . . . . . Times Spotted 144 | . 10 17 29 31 5 18 34 Peak Tracking Total 18 | . 4 10 17 8 4 9 18 Tactical Retreats 22 | . . 1 4 7 1 4 5 Traps | -11 -10 -9 -8 -7 -6 -5 -4 ------- Run | Yrd Mat Mat Mat Fac Fac Fac Fac Traps Triggered 6 | . 1 . 3 1 . 1 . Indirectly . | . . . . . . . . Trap Hack Attempts . | . . . . . . . . Triggered . | . . . . . . . . Disarmed . | . . . . . . . . Reprogrammed . | . . . . . . . . Reused . | . . . . . . . . Traps Extracted . | . . . . . . . . Installed . | . . . . . . . . Triggered . | . . . . . . . . Objects Rigged 2 | . . . 2 . . . . Exploded 1 | . . . 1 . . . . Machines | -11 -10 -9 -8 -7 -6 -5 -4 ---------- Run | Yrd Mat Mat Mat Fac Fac Fac Fac Machines Disabled 2 | . . . 2 . . . . Max in Single Turn 2 | . . . 2 . . . . Machines Repaired . | . . . . . . . . Machines Dismantled . | . . . . . . . . Machines Sabotaged . | . . . . . . . . Overloaded Fab Kills . | . . . . . . . . Hacking | -11 -10 -9 -8 -7 -6 -5 -4 --------- Run | Yrd Mat Mat Mat Fac Fac Fac Fac Machines Accessed 17 | . 2 . 3 4 . 3 5 Terminals 15 | . 2 . 3 3 . 2 5 Fabricators 1 | . . . . 1 . . . Repair Stations . | . . . . . . . . Recycling Units 1 | . . . . . . 1 . Scanalyzers . | . . . . . . . . Garrison Access . | . . . . . . . . Total Hacks 28 | . 4 . 5 4 . 5 10 Successful 12 | . 3 . 3 2 . 2 2 Failed 16 | . 1 . 2 2 . 3 8 Catastrophic 2 | . . . . . . . 2 Database Lockouts . | . . . . . . . . Manual 18 | . 4 . 5 2 . . 7 Terminals 26 | . 4 . 5 3 . 4 10 Fabricators 1 | . . . . 1 . . . Repair Stations . | . . . . . . . . Recycling Units 1 | . . . . . . 1 . Scanalyzers . | . . . . . . . . Garrison Access . | . . . . . . . . Terminal Hacks 4 | . . . . 1 . 2 1 Emergency Access Points 1 | . . . . . . 1 . Alert Level 2 | . . . . . . 1 1 Unreport Threat 1 | . . . . 1 . . . Fabricator Hacks . | . . . . . . . . Repair Station Hacks . | . . . . . . . . Recycling Unit Hacks . | . . . . . . . . Scanalyzer . | . . . . . . . . Garrison Access Hacks . | . . . . . . . . Unauthorized Hacks 8 | . 3 . 3 1 . . 1 Terminals 8 | . 3 . 3 1 . . 1 Assimilate 2 | . 1 . . . . . 1 Botnet 4 | . 2 . 1 1 . . . Detonate 1 | . . . 1 . . . . Disrupt 1 | . . . 1 . . . . Fabricators . | . . . . . . . . Repair Stations . | . . . . . . . . Recycling Units . | . . . . . . . . Scanalyzers . | . . . . . . . . Garrison Access . | . . . . . . . . Data Cores Recovered 1 | . . . . 1 . . . Used . | . . . . . . . . Hacking Detections 12 | . . . 2 3 . 3 4 Full Trace Events . | . . . . . . . . Feedback Events . | . . . . . . . . Feedback Blocked . | . . . . . . . . Robot Schematics Acquired . | . . . . . . . . Robots Built . | . . . . . . . . Authchips . | . . . . . . . . Time . | . . . . . . . . Total Robot Build Rating . | . . . . . . . . Part Schematics Acquired . | . . . . . . . . Parts Built . | . . . . . . . . Authchips . | . . . . . . . . Time . | . . . . . . . . Total Part Build Rating . | . . . . . . . . Parts Repaired . | . . . . . . . . Time . | . . . . . . . . Parts Recycled . | . . . . . . . . Recycled Matter . | . . . . . . . . Retrieved Matter . | . . . . . . . . Retrieved Components . | . . . . . . . . Parts Scanalyzed . | . . . . . . . . Part Schematics Acquired . | . . . . . . . . Parts Damaged . | . . . . . . . . Bothacking | -11 -10 -9 -8 -7 -6 -5 -4 ------------ Run | Yrd Mat Mat Mat Fac Fac Fac Fac Used RIF Installer . | . . . . . . . . Robots Hacked . | . . . . . . . . Non-combat . | . . . . . . . . Combat . | . . . . . . . . Robot Hacks Applied . | . . . . . . . . Relay Couplers Released . | . . . . . . . . Fabnet Peak Effective % . | . . . . . . . . Robots Rewired . | . . . . . . . . Allies Hacked . | . . . . . . . . Hacks Repelled . | . . . . . . . . Allies | -11 -10 -9 -8 -7 -6 -5 -4 -------- Run | Yrd Mat Mat Mat Fac Fac Fac Fac Total Allies . | . . . . . . . . Largest Group . | . . . . . . . . Highest-Rated Group . | . . . . . . . . Highest-Rated Ally . | . . . . . . . . Total Orders . | . . . . . . . . Ally Attacks . | . . . . . . . . Total Damage . | . . . . . . . . Kills . | . . . . . . . . Allies Corrupted . | . . . . . . . . Allies Melted . | . . . . . . . . Intel | -11 -10 -9 -8 -7 -6 -5 -4 ------- Run | Yrd Mat Mat Mat Fac Fac Fac Fac Robot Analysis Total . | . . . . . . . . Derelict Logs Recovered . | . . . . . . . . Drone Launches . | . . . . . . . . Drone Recoveries . | . . . . . . . . Exploration | -11 -10 -9 -8 -7 -6 -5 -4 ------------- Run | Yrd Mat Mat Mat Fac Fac Fac Fac Turns Passed 2005 | 56 333 373 252 380 74 220 317 Spaces Moved 3618 | 39 210 143 497 1044 174 751 760 Core 21 | 21 . . . . . . . Treads 181 | . . 125 56 . . . . Legs 246 | 18 210 18 . . . . . Wheels . | . . . . . . . . Hover . | . . . . . . . . Flight 3170 | . . . 441 1044 174 751 760 Fastest Speed 24 | 50 120 120 31 27 27 24 24 Average Speed 40 | 106 120 154 45 27 27 24 29 Slowest Speed 160 | 150 120 160 160 27 27 27 110 Overloaded Moves . | . . . . . . . . Propulsion Burnouts . | . . . . . . . . Robots Hopped 32 | . . . 16 6 . 4 6 Cave-ins Triggered . | . . . . . . . . Exploration Rate (%) 27 | 3 40 18 61 41 7 24 22 Regions Visited 7 Branch Regions . Pre-discovered Areas . | . . . . . . . . Known Exits Taken 1 | . . . . . . 1 . Unknown Exits Taken 6 | 1 1 1 1 1 1 . . Scrap Searched . | . . . . . . . . Spaces Dug 21 | . . . . 5 3 4 9 Terrain Destroyed 46 | . . 3 22 5 3 4 9 Melee 21 | . . . . 5 3 4 9 Projectile 3 | . . 3 . . . . . AOE 22 | . . . 22 . . . . Terrain Rammed . | . . . . . . . . Walls Destroyed . | . . . . . . . . Machines Disabled . | . . . . . . . . Actions | -11 -10 -9 -8 -7 -6 -5 -4 --------- Run | Yrd Mat Mat Mat Fac Fac Fac Fac Total 3921 | 52 244 238 505 1109 190 771 812 Wait 36 | . 2 2 . 22 . . 10 Move 3555 | 38 209 142 470 1032 173 742 749 Hop 24 | . . . 10 5 . 4 5 Pick Up 50 | 10 3 18 6 6 . 4 3 Fast Attach 27 | 2 1 4 1 5 2 3 9 Attach 21 | 2 3 2 3 2 . 4 5 Detach 3 | . . . . . 1 1 1 Swap 35 | . 2 14 5 8 3 1 2 Drop 53 | . 1 21 8 11 4 3 5 Fire 71 | . 23 35 2 3 . . 8 Melee 44 | . . . . 15 7 9 13 Ram 2 | . . . . . . . 2 Kick . | . . . . . . . . Crush . | . . . . . . . . Escape Stasis . | . . . . . . . . Rewire . | . . . . . . . . Trap . | . . . . . . . . Miscellaneous . | . . . . . . . . Route ------- -11/Scrapyard -10/Materials -9/Materials -8/Materials -7/Factory -6/Factory -5/Factory -4/Factory History --------- Turn | Location | Event 13 | -11/Scrapyard | Discovered new exit (range 15) 57 | -11/Scrapyard | Entered Materials 315 | -10/Materials | Build established: Mutant 347 | -10/Materials | Discovered new exit (range 16) 390 | -10/Materials | Entered another Materials area 390 | -9/Materials | Evolved 2 slots: Propulsion x1, Utility x1 494 | -9/Materials | Lost 3 parts (2n1w) 757 | -9/Materials | Discovered new exit (range 5) 763 | -9/Materials | Entered another Materials area 763 | -8/Materials | Evolved 2 slots: Propulsion x1, Utility x1 810 | -8/Materials | Build established: Scavenger-Mutant 1005 | -8/Materials | Discovered new exit (range 16) 1015 | -8/Materials | Entered Factory 1015 | -7/Factory | Evolved 2 slots: Power x1, Propulsion x1 1146 | -7/Factory | Build established: Sprinter 1391 | -7/Factory | Discovered new exit (range 16) 1395 | -7/Factory | Entered another Factory area 1395 | -6/Factory | Evolved 2 slots: Utility x1, Weapon x1 1467 | -6/Factory | Discovered new exit (range 8) 1469 | -6/Factory | Entered another Factory area 1469 | -5/Factory | Evolved 2 slots: Propulsion x1, Utility x1 1678 | -5/Factory | Found Prototype Launcher 1678 | -5/Factory | Identified Scatter Rocket Array 1684 | -5/Factory | Discovered new exit (range 16) 1689 | -5/Factory | Identified exit to Factory 1689 | -5/Factory | Entered another Factory area 1689 | -4/Factory | Evolved 2 slots: Utility x1, Weapon x1 1742 | -4/Factory | Spotted B-86 Titan 1859 | -4/Factory | Lost 5 parts (3n2u) 1975 | -4/Factory | Core integrity fell below 50% 1996 | -4/Factory | Core integrity fell below 20% 2006 | -4/Factory | Destroyed by C-35 Carver with Carbide Saw Last Messages --------------- 01952_ VTOL Module destroyed. 01952_ Knocked back. 01954_ Slug penetrates Wall. 01972_ Recycling Unit disabled. 01972_ Linear Accelerator tumbles out of recycling unit. 01974_ VTOL Module destroyed. 01974_ Impulse Thruster destroyed. 01974_ Imp. Cooling System destroyed. 01974_ Knocked back. 01977_ Penetrated by Slug. 01983_ Knocked back. 01984_ Acquired 6 matter. 01986_ Mic. Fission Core destroyed. 01988_ Acquired Cmb. Gravmag System. 01992_ Katana destroyed. 01996_ G-67 Veteran Flexi-carbon Leg blasted off. 01997_ Penetrated by Slug. 02000_ Slammed into G-67 Veteran. 02003_ Mni. Assault Cannon severed. 02005_ U-05 Engineer builds a Wall. Map ----- +----------------------------------------------------+ | ???????????????# """ #??????????????? | | ???????????????# """ #??????????????? | | ???????????????# #??????????????? | | ???????????????##########+##############?????????? | | ?????????????????????# # """"" #?????????? | | ?????????????????????#% # ""T"" ???????????? | | ?????????????????????# T" # ?????????????? | | ?????????????????????# " # % ???????????????? | | ?????????????????????# ##+############???### | | ?????????????????????# ## + != #???# | | ?????????????????????# ## #### != [#???# | | ?????????????##########" #### #??# #???# | | ?????????????# * ! #u^ #??# #??# #???# | | ?????????????# + #??# #??# #?????" | | ?????????????# "" # #### #######/####?????" | | ?????????????# """ "" # ## ] #?# #????# " | | ?????????????# """ Y" " ### ###### | | ?????????????# """ ""]" + " | | ?????????????# " # h #"# ###????" | | ?????????????#= % ## ###] ##" #????# " | | ?????????????########%### #?###/####### ###????# | | ????????????????????###?#g#?# #??# #??????### | | ????????????????????????#R### #??# #????????? | | ????????????????????????#HY## #??# #????????? | | ????????????????????????#sgg/ ! #??# #????????? | | ????????????????????????#@###! #??# ########## | | ????????????????????????#c#?# #??# | | ????????????????????????#c#?########??############ | | ????????????????????????#g#??????????????????????? | | ????????????????????????#g#??????????????????????? | | ????????????????????????#g#??????????????????????? | | ????????????#############g#??????????????????????? | | ???????????? #c#??????????????????????? | | ?????????????""""" ! #R#??????????????????????? | | ???????????# ""R"" #R#??????????????????????? | | ???????????# " " #R###########????????????? | | ???????????# + # #????????????? | | ???????????# """ """ # # #????????????? | | ##########?# """ """ # # ############## | | "T" #?# """ """ # + # = # | | " " #?# # # ]] " # | | " " #?# # # ]] # # | | " " #?# # # ] # # | | " " #?# *# #* # # | | " " #########+###### ########### # | | " " # ???# # | | " " # ???# " | | " " ! # ???# # | | " " + ????# # | | # ????# + | +----------------------------------------------------+ Best States ------------- Heat Dissipation 70 Energy Generation 29 Energy Capacity 305 Matter Stores 300 Matter Capacity 300 Sight Range 16 Robot Scan Range 16 Terrain Scan Density 10 ECM Strength 1 Jamming Range 12 Power Amplification 20 Armor Coverage 150 Propulsion Shielding 66 Evasion (%) 75 Recoil Reduction 3 Defensive Hacking 24 Item Schematics ----------------- None Robot Schematics ------------------ None Fabricated ------------ Nothing Alien Tech Used ----------------- None Achievements -------------- None Challenges ------------ None Game ------ Seed ContainmentSpacefoldCarapace Manual? 0 Play Time 00:57:18 Cumulative 164.2 hours Start 2024.09.14 @ 20:16:04 End 2024.09.14 @ 21:15:15 Sessions 1 Manual Loads 0 Difficulty Rogue Special Mode None Game No. 228 Rogue 228 Adventurer 0 Explorer 0 Win Type - Total 0 Types 0/0/0/0/0/0/0/0/0 Lore% 32 Gallery% 60 Achievement% 41 Wizard Run 0 Options --------- Layout 0 ASCII 0 Keyboard 0 Movement Mouse Keybinds 0 Fullscreen 1 Font 24/Smallcaps Map View 76x50 Zoom Use 0% Tactical HUD 1 Map Filters NONE Filters NONE Steam 1 RUN: 0e2f4775-b615-46cf-af42-9a09f9daa619